[Event "55th Biel Festival MTO 2022"]
[Site "Biel"]
[Date "2022.07.19"]
[Round "6.34"]
[White "Bewersdorff Oliver"]
[Black "Collin Moritz Valentin"]
[Result "1/2-1/2"]
[ECO "A13"]
[WhiteElo "2280"]
[BlackElo "2129"]
[Annotator "TA"]
[PlyCount "57"]
[EventDate "2022.07.13"]
[EventType "swiss"]
[EventCountry "SUI"]
[SourceTitle "playchess.com"]
[Source "ChessBase"]
[SourceQuality "1"]
[TimeControl "40/5400+30:1800+30"]

{[%evp 14,57,7,13,16,16,16,18,22,18,44,37,29,34,13,12,60,66,45,66,50,6,10,24,16,21,24,26,31,-12,0,-66,-55,-82,-49,-49,0,0,0,0,0,0,0,0,0,0]} 1. Nf3 {[%emt 0:00:13]} Nf6 {[%emt 0:00:04]} 2. c4 {[%emt 0:00:14]} e6 {[%emt 0:00:10]} 3. g3 {[%emt 0:00:14]} d5 {[%emt 0:00:17]} 4. Bg2 {[%emt 0:00:13]} d4 {[%emt 0:00:50]} 5. O-O {[%emt 0:00:21]} c5 {[%emt 0:00:06]} 6. e3 {[%emt 0:00:54]} Nc6 {[%emt 0:00:10]} 7. exd4 {[%emt 0:00:37]} cxd4 {[%emt 0:00:06]} 8. d3 {[%emt 0:00:55]} Be7 {[%emt 0:02:05] A13: English Opening: 1...e6.} 9. Na3 {[%emt 0:03:50]} O-O {[%emt 0:00:16]} 10. Re1 {[%emt 0:01:26][%cal Bf1e1,Be1e5,Be5b5][%mdl 32] Against e5} h6 {[%emt 0:03:09]} 11. Nc2 {[%emt 0:03:46]} a5 {[%emt 0:01:18]} 12. b3 {[%emt 0:07:23]} Re8 {[%emt 0:03:53]} 13. Ne5 {[%emt 0:05:50]} Nxe5 {[%emt 0:05:10]} 14. Rxe5 {[%emt 0:00:20] [#]} Nd7 $146 {[%emt 0:02:19]} (14... Qc7 $11 15. f4 Bd6) ({Predecessor:} 14... Qc7 15. Rb5 e5 16. f4 Bd6 17. fxe5 Bxe5 18. Qf1 Ra6 19. Bf4 Rae6 20. Rxe5 Rxe5 21. Bxe5 Rxe5 {½-½ (43) Petrosian,T (2601)-Bernadskiy,V (2574) Tsaghkadzor 2017}) 15. Rb5 $14 {[%emt 0:02:31]} Nc5 {[%emt 0:07:54]} 16. Ba3 {[%emt 0:02:36]} Qc7 {[%emt 0:02:28]} 17. Nxd4 {[%emt 0:04:34] aiming for Ne2.} (17. Qh5 $5 {[%cal Rb5c5]} Nxd3 18. Bxe7 Qxe7 19. Qd1 $16) 17... Rd8 $1 {[%emt 0:03:35]} 18. Bxc5 {[%emt 0:06:02]} Bxc5 {[%emt 0:00:09]} 19. Nc2 {[%emt 0:00:42]} Ra7 {[%emt 0:06:40]} 20. d4 {[%emt 0:08:51]} b6 {[%emt 0:02:12][%cal Oc8d7]} 21. Qd3 {[%emt 0:07:27]} e5 $1 {[%emt 0:10:44][%cal Re5d4]} 22. Bd5 {[%emt 0:03:33]} (22. dxc5 $11 Rxd3 23. cxb6) 22... exd4 $15 {[%emt 0:02:32]} 23. Nxd4 {[%emt 0:06:49][%cal Bc2d4,Bd4e6,Be6d8,Bd8c6,Bc6e5][%mdl 32]} Ba6 {[%emt 0:04:31] [#] Threatens to win with ...Rxd5.} 24. Rxc5 {[%emt 0:02:12]} Qxc5 {[%emt 0:06:01]} (24... bxc5 $15 25. Nf5 Qe5) 25. Ne6 $1 $36 {[%emt 0:00:52][%mdl 2048] White is more active. The position is equal.} Qxd5 {[%emt 0:05:35]} 26. cxd5 {[%emt 0:01:18] Dancing on a razor blade.} Bxd3 {[%emt 0:00:13]} 27. Nxd8 {[%emt 0:00:13]} Rd7 {[%emt 0:03:24][%csl LRd5,LRd8]} 28. Nc6 {[%emt 0:06:40]} Kf8 {[%emt 0:03:51]} 29. Ne5 {[%emt 0:02:17][%csl LRd3,LRd7] Weighted Error Value: White=0.14 (very precise) /Black=0.08 (flawless)} 1/2-1/2

[Event "55th Biel Festival MTO 2022"]
[Site "Biel"]
[Date "2022.07.19"]
[Round "6.35"]
[White "Gomez Barrera Javiera Belen"]
[Black "Schwander Lukas"]
[Result "1-0"]
[ECO "B57"]
[WhiteElo "2210"]
[BlackElo "2274"]
[Annotator "TA"]
[PlyCount "110"]
[EventDate "2022.07.13"]
[EventType "swiss"]
[EventCountry "SUI"]
[SourceTitle "playchess.com"]
[Source "ChessBase"]
[SourceQuality "1"]
[TimeControl "40/5400+30:1800+30"]

{[%evp 15,110,16,28,22,24,25,31,26,35,16,62,69,66,68,108,108,150,109,147,141,160,149,162,150,213,180,477,466,498,497,517,517,516,516,516,514,509,509,494,490,456,387,641,679,679,675,672,665,672,668,665,643,659,615,628,0,625,602,649,649,640,628,649,649,738,745,745,708,707,681,678,636,587,579,738,541,738,738,738,738,717,685,737,729,988,988,988,988,982,949,1326,1339,1281,1271,1125,1062,29999]} 1. e4 {[%emt 0:05:08]} c5 {[%emt 0:00:04]} 2. Nf3 {[%emt 0:00:09]} d6 {[%emt 0:00:05]} 3. d4 {[%emt 0:00:05]} cxd4 {[%emt 0:00:04]} 4. Nxd4 {[%emt 0:00:05]} Nf6 {[%emt 0:00:03]} 5. Nc3 {[%emt 0:00:06]} Nc6 {[%emt 0:00:07]} 6. Bc4 {[%emt 0:00:30]} Qb6 {[%emt 0:00:32]} 7. Nxc6 {[%emt 0:09:46]} bxc6 {[%emt 0:00:07]} 8. O-O {[%emt 0:00:11]} g6 {[%emt 0:02:04]} 9. Qe1 {[%emt 0:01:33] B57: Classical Sicilian: Sozin with 6...Qb6.} Bg7 {[%emt 0:04:22] 9...Qc7 is becoming the main line.} 10. e5 {[%emt 0:15:36]} dxe5 {[%emt 0:00:08]} 11. Qxe5 {[%emt 0:00:15] White is slightly better.} O-O {[%emt 0:00:35]} 12. Qxe7 {[%emt 0:24:10]} Bf5 {[%emt 0:00:09]} (12... Ba6 $1 $11 {might be stronger.} 13. Bxa6 Qxa6) 13. Bb3 $14 {[%emt 0:11:37] White is more active.} Rae8 {[%emt 0:00:55]} 14. Qd6 {[%emt 0:00:14]} Ng4 {[%emt 0:16:17][%cal Og4f2]} 15. Bf4 {[%emt 0:01:06] [#]} Ne5 $146 {[%emt 0:23:45]} ({Predecessor:} 15... Bd4 16. Bg3 Rd8 17. Qf4 Be5 18. Qf3 Bxg3 19. Qxg3 Rd2 20. h3 Nf6 21. Qg5 Qd4 22. Rad1 Ne4 23. Qf4 Nxc3 24. Qxd2 {1-0 (24) Danin,A (2525)-Badelka,O (2418) Bryansk 2021}) 16. Rae1 {[%emt 0:07:59]} Rd8 {[%emt 0:01:33]} 17. Qe7 {[%emt 0:00:31]} Rfe8 {[%emt 0:11:50] [#]} 18. Qh4 {[%emt 0:00:16]} Qb4 {[%emt 0:07:24]} 19. a3 {[%emt 0:06:10]} Qc5 {[%emt 0:10:08]} (19... Qf8 $16 {is a better defense.} 20. Qg3 Ng4) 20. Ne4 {[%emt 0:03:37]} Qd4 {[%emt 0:01:49]} (20... Bxe4 {was worth a try.} 21. Rxe4 Nd7) 21. c3 $18 {[%emt 0:02:23]} ({Weaker is} 21. Ng5 h6 $14) (21. Bg5 Rb8 22. Nf6+ Bxf6 23. Bxf6 (23. Qxd4 Nf3+ 24. gxf3 Bxd4 $14) 23... Qxh4 24. Bxh4 Nd7 $16) 21... Qxe4 {[%emt 0:08:48]} 22. Rxe4 {[%emt 0:00:27]} Bxe4 {[%emt 0:00:09]} 23. Bg5 {[%emt 0:04:40][%csl LRd8,LRe4]} Rb8 {[%emt 0:03:52]} 24. Qxe4 {[%emt 0:00:10]} Rxb3 {[%emt 0:00:21]} 25. f4 {[%emt 0:02:16]} h6 {[%emt 0:01:45]} 26. Bh4 {[%emt 0:01:01]} g5 {[%emt 0:00:09]} 27. fxe5 {[%emt 0:01:44]} gxh4 {[%emt 0:00:17]} 28. Qxc6 {[%emt 0:01:44]} Reb8 {[%emt 0:00:07]} (28... Rxe5 29. Qc4 Rxb2 30. Rxf7 Kh8 31. Qxh4 Ree2) 29. Qd5 {[%emt 0:00:47]} R3b7 {[%emt 0:03:31]} 30. e6 {[%emt 0:00:35]} fxe6 {[%emt 0:00:03]} 31. Qxe6+ {[%emt 0:00:05]} Kh8 {[%emt 0:00:04]} 32. b4 {[%emt 0:00:39]} Rb6 {[%emt 0:01:01]} 33. Qd7 {[%emt 0:00:39]} R6b7 {[%emt 0:00:27]} 34. Qd6 {[%emt 0:00:34]} Rb6 {[%emt 0:00:09]} 35. Qd7 {[%emt 0:00:38]} R6b7 $1 {[%emt 0:00:04]} 36. Qd5 {[%emt 0:00:26] White is clearly winning.} Bxc3 {[%emt 0:00:38]} 37. Rf7 {[%emt 0:00:33]} Rxf7 {[%emt 0:01:18]} 38. Qxf7 {[%emt 0:00:01][%mdl 4096] Endgame KQ-KRB} Bd4+ {[%emt 0:01:35]} 39. Kf1 {[%emt 0:00:54] [#] And now Qf4 would win.} h3 {[%emt 0:02:08]} 40. gxh3 {[%emt 0:00:22] aiming for Qf4.} Rg8 {[%emt 0:01:17]} 41. Ke2 {[%emt 0:03:49]} Bg1 {[%emt 0:02:12]} 42. b5 {[%emt 0:04:14]} Rg7 {[%emt 0:00:35]} 43. Qf8+ {[%emt 0:03:21]} Kh7 {[%emt 0:00:05]} 44. Qf5+ {[%emt 0:00:37]} Kh8 {[%emt 0:00:47]} 45. a4 {[%emt 0:01:41]} Bb6 {[%emt 0:02:42]} 46. Kd3 {[%emt 0:01:35]} Kg8 {[%emt 0:01:58]} 47. Qe6+ {[%emt 0:01:13]} Kh7 {[%emt 0:00:17]} 48. Kc4 {[%emt 0:05:32]} Rg6 {[%emt 0:03:23]} 49. Qe4 {[%emt 0:03:43]} Kg7 {[%emt 0:01:30]} 50. Kb4 {[%emt 0:00:13]} Rf6 {[%emt 0:00:56]} 51. a5 {[%emt 0:01:16]} Bf2 {[%emt 0:00:11]} 52. Kc4 {[%emt 0:01:13]} h5 {[%emt 0:02:29]} 53. h4 {[%emt 0:01:26]} Kh6 {[%emt 0:07:33]} 54. Kd5 {[%emt 0:05:30]} Bg1 {[%emt 0:00:58]} 55. Qe5 {[%emt 0:00:36]} Rg6 {[%emt 0:00:17] White took control after the opening.  Weighted Error Value: White=0.07 (flawless) /Black=0.38} 1-0

[Event "55th Biel Festival MTO 2022"]
[Site "Biel"]
[Date "2022.07.19"]
[Round "6.36"]
[White "Acikel Mert"]
[Black "Dauth Benjamin"]
[Result "1/2-1/2"]
[ECO "B03"]
[WhiteElo "2172"]
[BlackElo "2243"]
[Annotator "TA"]
[PlyCount "22"]
[EventDate "2022.07.13"]
[EventType "swiss"]
[EventCountry "SUI"]
[SourceTitle "playchess.com"]
[Source "ChessBase"]
[SourceQuality "1"]
[TimeControl "40/5400+30:1800+30"]

{[%evp 15,22,23,52,45,84,0,79,66,71]} 1. e4 {[%emt 0:00:19][%cal Be2e4,Be4e5][%mdl 32]} Nf6 {[%emt 0:00:23][%cal Bg8f6,Bf6d5,Bd5b6][%mdl 32]} 2. e5 {[%emt 0:00:55]} Nd5 {[%emt 0:00:08]} 3. d4 {[%emt 0:00:34]} d6 {[%emt 0:00:07]} 4. c4 {[%emt 0:00:25]} Nb6 {[%emt 0:00:19]} 5. exd6 {[%emt 0:00:49]} exd6 {[%emt 0:00:35]} 6. Nc3 {[%emt 0:00:31]} Be7 {[%emt 0:00:09]} 7. Bd3 {[%emt 0:00:35]} Nc6 {[%emt 0:01:19]} 8. Nge2 {[%emt 0:00:50]} Bg4 {[%emt 0:02:15]} 9. Be3 {[%emt 0:01:34] B03: Alekhine's Defence: Four Pawns Attack.} Qd7 {[%emt 0:01:15] [#]} 10. Qd2 $146 {[%emt 0:01:11]} (10. b3 $16) ({Predecessor:} 10. O-O O-O 11. f3 Bf5 12. b3 Rfe8 13. Bf2 Bf8 14. Bxf5 Qxf5 15. Qd2 d5 16. c5 Nc8 {0-1 (76) Martinez Alcantara,J (2620)-Seo,J (2455) Chess.com INT 2020}) 10... Bf5 {[%emt 0:00:13]} (10... d5 $11) 11. b3 {[%emt 0:02:17]} Bxd3 {[%emt 0:00:14] Weighted Error Value: White=0.28 (precise) /Black=0.57} 1/2-1/2

[Event "55th Biel Festival MTO 2022"]
[Site "Biel"]
[Date "2022.07.19"]
[Round "6.37"]
[White "Kittler Thorsten"]
[Black "Akshit Kumar J"]
[Result "1-0"]
[ECO "D11"]
[WhiteElo "2226"]
[BlackElo "2103"]
[Annotator "RC"]
[PlyCount "109"]
[EventDate "2022.07.13"]
[EventType "swiss"]
[EventCountry "SUI"]
[SourceTitle "playchess.com"]
[Source "ChessBase"]
[SourceQuality "1"]
[TimeControl "40/5400+30:1800+30"]

1. d4 {[%emt 0:00:04]} d5 {[%emt 0:00:23]} 2. Nf3 {[%emt 0:00:05]} Nf6 {[%emt 0:00:05]} 3. g3 {[%emt 0:00:05]} c6 {[%emt 0:00:05]} 4. Bg2 {[%emt 0:00:06]} Bf5 {[%emt 0:00:05]} 5. O-O {[%emt 0:00:08]} e6 {[%emt 0:00:02]} 6. b3 {[%emt 0:00:46]} Nbd7 {[%emt 0:00:48]} 7. c4 {[%emt 0:00:36]} Be7 {[%emt 0:02:08]} 8. Nbd2 {[%emt 0:04:22]} h6 {[%emt 0:03:34]} 9. Bb2 {[%emt 0:00:17]} O-O {[%emt 0:02:07]} 10. Ne5 {[%emt 0:02:13]} Nxe5 {[%emt 0:10:01]} 11. dxe5 {[%emt 0:00:08]} Nd7 {[%emt 0:01:16]} 12. e4 {[%emt 0:03:52]} dxe4 {[%emt 0:02:25]} 13. Nxe4 {[%emt 0:00:11]} Nc5 {[%emt 0:07:50]} 14. Qe2 {[%emt 0:11:48]} Bxe4 {[%emt 0:10:10]} 15. Bxe4 {[%emt 0:00:58]} Nxe4 {[%emt 0:00:24]} 16. Qxe4 {[%emt 0:00:09]} Qa5 {[%emt 0:01:46]} 17. Qc2 {[%emt 0:09:02]} Rad8 {[%emt 0:07:14]} 18. Bc3 {[%emt 0:01:16]} Qa3 {[%emt 0:10:24]} 19. Rad1 {[%emt 0:07:37]} a5 {[%emt 0:05:47]} 20. Qb2 {[%emt 0:05:54]} Qxb2 {[%emt 0:06:30]} 21. Bxb2 {[%emt 0:00:35]} Bb4 {[%emt 0:03:16]} 22. a4 {[%emt 0:03:37]} b6 {[%emt 0:06:55]} 23. Bd4 {[%emt 0:16:08]} c5 {[%emt 0:00:24]} 24. Be3 {[%emt 0:00:04]} Bc3 {[%emt 0:01:44]} 25. f4 {[%emt 0:00:06]} Rfe8 {[%emt 0:01:07]} 26. Kf2 {[%emt 0:01:10]} Kf8 {[%emt 0:00:32]} 27. Ke2 {[%emt 0:02:19]} Ke7 {[%emt 0:04:14]} 28. g4 {[%emt 0:09:27]} Rxd1 {[%emt 0:01:41]} 29. Rxd1 {[%emt 0:00:06]} Rd8 {[%emt 0:00:17]} 30. Rxd8 {[%emt 0:00:20]} Kxd8 {[%emt 0:00:02]} 31. h4 {[%emt 0:04:01]} Ke7 {[%emt 0:01:19]} 32. h5 {[%emt 0:01:11]} Kf8 {[%emt 0:01:08]} 33. Bf2 {[%emt 0:02:51]} f6 {[%emt 0:07:54]} 34. Kd3 {[%emt 0:03:24]} Bb2 {[%emt 0:00:25]} 35. exf6 {[%emt 0:00:38]} Bxf6 {[%emt 0:00:34]} 36. Ke4 {[%emt 0:00:08]} Ke7 {[%emt 0:01:09]} 37. Be3 {[%emt 0:00:54]} Bc3 {[%emt 0:02:40]} 38. Bf2 {[%emt 0:03:09]} Bf6 {[%emt 0:00:26]} 39. Bg3 {[%emt 0:00:05]} Kd7 {[%emt 0:00:36]} 40. Bh2 {[%emt 0:05:45]} Bd8 {[%emt 0:00:28]} 41. Bg3 {[%emt 0:32:07]} Bf6 {[%emt 0:04:37]} 42. Be1 {[%emt 0:00:00]} Bb2 {[%emt 0:04:06]} 43. Bd2 {[%emt 0:00:00]} Bf6 {[%emt 0:03:50]} 44. Bc1 {[%emt 0:00:00]} Bc3 {[%emt 0:06:03]} 45. g5 {[%emt 0:00:00]} Kd6 {[%emt 0:03:52]} 46. Be3 {[%emt 0:00:00]} hxg5 {[%emt 0:02:57]} 47. fxg5 {[%emt 0:00:00]} g6 {[%emt 0:00:11]} 48. hxg6 {[%emt 0:00:00]} Bg7 {[%emt 0:00:36]} 49. Bf2 {[%emt 0:00:00]} e5 {[%emt 0:01:59]} 50. Kf5 {[%emt 0:00:00]} Bh8 {[%emt 0:00:25]} 51. Bg3 {[%emt 0:00:00]} Bg7 {[%emt 0:00:05]} 52. Bh2 {[%emt 0:00:00]} Bh8 {[%emt 0:00:09]} 53. g7 {[%emt 0:00:00]} Bxg7 {[%emt 0:00:26]} 54. Kg6 {[%emt 0:00:00]} Bf8 {[%emt 0:01:29]} 55. Kf7 {[%emt 0:00:00]} 1-0

[Event "55th Biel Festival MTO 2022"]
[Site "Biel"]
[Date "2022.07.19"]
[Round "6.38"]
[White "Roe Simon J"]
[Black "Kamber Bruno"]
[Result "0-1"]
[ECO "A20"]
[WhiteElo "2170"]
[BlackElo "2225"]
[Annotator "TA"]
[PlyCount "142"]
[EventDate "2022.07.13"]
[EventType "swiss"]
[EventCountry "SUI"]
[SourceTitle "playchess.com"]
[Source "ChessBase"]
[SourceQuality "1"]
[TimeControl "40/5400+30:1800+30"]

{[%evp 9,142,22,27,39,75,85,78,65,76,75,139,131,122,111,120,131,120,51,52,52,91,93,133,112,123,121,122,93,112,95,103,106,123,134,147,74,71,66,66,78,84,68,110,95,89,26,36,14,10,11,12,4,9,9,17,8,19,0,35,40,45,0,18,0,0,0,0,0,0,0,0,0,-1,-19,-18,-17,-18,-18,-13,-23,-13,-45,-45,-45,-45,-167,-155,-272,-8,-169,-36,-30,-45,-77,-77,-121,-121,-217,-102,-208,-108,-479,-68,-311,-117,-117,-97,-100,-107,-359,-344,-265,0,-54,-50,-52,-52,-119,-116,-122,-8,-1058,-1043,-695,-620,-5575,-5575,-5431,-5189,-5193,-5057,-4133,-2156,-1022,-709]} 1. c4 {[%emt 0:00:07]} e5 {[%emt 0:00:59]} 2. g3 {[%emt 0:00:19]} Nf6 {[%emt 0:00:57]} 3. Bg2 {[%emt 0:00:40]} h6 {[%emt 0:00:45]} 4. Nf3 {[%emt 0:04:08][%cal Bg1f3,Bf3d4,Bd4c2][%mdl 32]} e4 {[%emt 0:00:31]} 5. Nd4 {[%emt 0:00:13]} Nc6 {[%emt 0:00:24]} 6. Nc2 {[%emt 0:02:19] A20: English Opening: 1...e5.} Bc5 {[%emt 0:01:59]} 7. Nc3 {[%emt 0:03:34]} Qe7 {[%emt 0:00:44]} 8. O-O {[%emt 0:04:54] White is better.} d6 {[%emt 0:00:37] [#]} 9. b4 $146 {[%emt 0:15:09]} ({Predecessor:} 9. d4 exd3 10. exd3 Bg4 11. Qd2 O-O 12. d4 Bb6 13. b4 a6 14. Bb2 Qd7 15. Rfe1 {½-½ (65) Grigorov,G (2504)-Brynell,S (2408) Sweden 2020}) 9... Bd4 {[%emt 0:01:01]} (9... Nxb4 $2 10. Nxb4 c6 11. Nc2 $18) (9... Bb6 $142) 10. Nxd4 $16 {[%emt 0:04:20]} Nxd4 {[%emt 0:00:07]} 11. Bb2 {[%emt 0:00:51][%cal Oc3e4]} c5 {[%emt 0:00:46]} 12. bxc5 {[%emt 0:05:19]} dxc5 {[%emt 0:00:08]} 13. Nb5 {[%emt 0:00:07]} (13. d3 $16) 13... Nxb5 $1 $14 {[%emt 0:04:26]} 14. cxb5 {[%emt 0:00:03]} b6 {[%emt 0:00:25]} 15. d4 {[%emt 0:08:11]} Bb7 {[%emt 0:03:00]} 16. dxc5 {[%emt 0:05:01]} bxc5 {[%emt 0:00:09]} 17. Qc2 {[%emt 0:05:41]} O-O {[%emt 0:00:15]} 18. Qc3 {[%emt 0:06:40]} Rfd8 {[%emt 0:00:44]} 19. Rac1 {[%emt 0:01:57]} Rac8 {[%emt 0:00:29]} 20. a4 {[%emt 0:00:45]} Rd4 {[%emt 0:02:11]} 21. Qa5 {[%emt 0:03:30][%csl LRa7,LRd4]} Rb4 {[%emt 0:00:57]} 22. Ba3 {[%emt 0:04:38]} (22. Bc3 $142 Rb3 23. Bxf6 (23. Qxa7 Ra8 $16) 23... gxf6 24. Bh3 (24. Qxa7 Ra8 $16)) 22... Rb3 $16 {[%emt 0:00:16]} 23. Rc3 {[%emt 0:00:44]} Rxc3 {[%emt 0:07:26]} 24. Qxc3 {[%emt 0:00:02]} Qe6 {[%emt 0:00:24] Prevents Bh3.} 25. Bb2 {[%emt 0:02:25]} ({Don't blunder} 25. Bxc5 $2 Qd5 26. Rc1 Nd7 $19) 25... Bd5 {[%emt 0:00:39]} 26. Rc1 {[%emt 0:03:31]} a6 {[%emt 0:00:37]} 27. Qe5 {[%emt 0:01:09]} (27. bxa6 $16 {Threatens to win with Qa5.} Qxa6 28. Qe3) 27... axb5 $11 {[%emt 0:03:23]} 28. Qxe6 {[%emt 0:00:30]} fxe6 {[%emt 0:00:15]} 29. axb5 {[%emt 0:00:07]} Nd7 {[%emt 0:00:31]} 30. e3 {[%emt 0:02:46]} c4 {[%emt 0:01:58]} 31. Bf1 {[%emt 0:02:15][%cal Of2f3]} Kf7 {[%emt 0:02:40]} 32. Bd4 {[%emt 0:01:45]} e5 {[%emt 0:00:53]} 33. Bb2 {[%emt 0:01:07]} Rc5 {[%emt 0:00:27]} 34. Ba3 {[%emt 0:03:55]} Rc8 {[%emt 0:02:24]} 35. Bb2 {[%emt 0:06:06]} Be6 {[%emt 0:03:26]} 36. Kg2 {[%emt 0:01:41]} Kf6 {[%emt 0:03:39]} 37. Be2 {[%emt 0:00:06]} Nb6 {[%emt 0:00:37]} 38. f4 {[%emt 0:00:40]} exf3+ $1 {[%emt 0:00:12]} 39. Bxf3 {[%emt 0:00:03]} ({Don't play} 39. Kxf3 Rc5 $15) 39... Nd5 {[%emt 0:02:29]} 40. Kf2 {[%emt 0:02:12]} Rc5 {[%emt 0:06:52]} 41. Ba3 {[%emt 0:09:52] This bishop pair is nice.} Rxb5 {[%emt 0:01:35][%cal Od5e3]} 42. Rxc4 {[%emt 0:00:07] [#]} Nxe3 $1 {[%emt 0:02:15]} 43. Rc7 {[%emt 0:00:27]} Nd5 {[%emt 0:08:34] Against Be7+} 44. Rc5 {[%emt 0:07:25] [#]} Rb3 {[%emt 0:06:02]} 45. Bxd5 {[%emt 0:00:12]} (45. Rc6 {looks sharper.} Ne7 46. Ra6 Rd3 47. Be4) 45... Bxd5 {[%emt 0:00:09]} (45... Rxa3 $2 46. Rc6 $18) 46. Rxd5 {[%emt 0:00:24]} Rxa3 {[%emt 0:00:05][%mdl 4096] Endgame KR-KR} 47. h4 {[%emt 0:00:19]} (47. g4 $15) 47... Kf5 $19 {[%emt 0:09:01]} 48. Rd7 {[%emt 0:03:07]} (48. h5 $17) 48... Ke4 $2 {[%emt 0:08:26]} (48... g5 $19 {Hoping for ...Kg4.} 49. Rh7 Ra6) 49. Rd2 $2 {[%emt 0:03:17]} (49. Rxg7 $11 {and White has nothing to worry.} Ra2+ 50. Ke1) 49... Rf3+ {[%emt 0:00:29]} (49... g5 $19 50. Rb2 gxh4 51. Rb4+ Kd3 52. gxh4 h5) 50. Kg2 $15 {[%emt 0:00:08]} Rf7 {[%emt 0:00:16]} 51. Rd1 {[%emt 0:01:32]} Rc7 {[%emt 0:01:56]} 52. Re1+ {[%emt 0:00:35]} Kf5 $1 {[%emt 0:00:11]} 53. Re2 {[%emt 0:01:38]} (53. Ra1 $17 {might work better.}) 53... e4 {[%emt 0:00:57]} (53... g5 $19 {and Black stays clearly on top.} 54. Kh3 g4+ 55. Kg2 h5) 54. Kh3 {[%emt 0:01:17]} (54. Rf2+ $17 {was the only chance.} Ke5 55. Ra2) 54... Rc3 {[%emt 0:01:59]} (54... Ra7 $19 55. Kg2 Ke5) 55. Kg2 $2 {[%emt 0:00:23][%mdl 8192] [#]} (55. Rf2+ $17 Rf3 56. Ra2) 55... Ke5 $2 {[%emt 0:01:19]} (55... g5 $1 $19 56. h5 Rb3) 56. Kf2 $2 {[%emt 0:01:01]} (56. h5 $15) 56... Rf3+ $2 {[%emt 0:02:48]} (56... g5 $19 {has better winning chances. ...g4 is the strong threat.} 57. Ra2 Kd4) 57. Kg2 $17 {[%emt 0:00:04]} Rf7 {[%emt 0:01:37]} 58. Ra2 {[%emt 0:01:30]} Rc7 {[%emt 0:01:01]} 59. Kf2 $2 {[%emt 0:00:14][%mdl 8192] [#]} (59. Ra5+ $17 Kd4 60. g4) 59... Kf5 $1 $19 {[%emt 0:05:46]} 60. Kg2 {[%emt 0:00:39]} Rc3 $2 {[%emt 0:03:02]} (60... Kg4 $19 {Strongly threatening ...Rc3.} 61. Rf2 g5) 61. Rf2+ {[%emt 0:00:27]} ({White should try} 61. Re2 $11) 61... Ke5 $15 {[%emt 0:00:35]} 62. Rf7 {[%emt 0:03:15]} Rc2+ {[%emt 0:02:30]} 63. Kf1 {[%emt 0:00:04]} ({White should play} 63. Kh3 $1 $15) 63... g6 {[%emt 0:03:10]} 64. Rg7 {[%emt 0:00:23]} Kf5 {[%emt 0:00:53] Black is more active.} (64... Rc6 $17 {And now ...Kf5 would win.} 65. Ra7 Kf5 66. Rf7+ Kg4 67. Rf4+ Kxg3 68. Rxe4 h5) 65. Rg8 $2 {[%emt 0:01:19][%mdl 8192]} (65. g4+ $11 Kxg4 66. Rxg6+ Kxh4 67. Rxh6+ Kg3 68. Rh8) 65... Rc6 $19 {[%emt 0:06:53] Black is clearly winning.} 66. Re8 {[%emt 0:01:05]} Kg4 {[%emt 0:00:16]} 67. Rxe4+ {[%emt 0:00:04]} Kxg3 {[%emt 0:00:06]} 68. Ke2 {[%emt 0:00:16]} h5 {[%emt 0:00:36]} 69. Ke3 {[%emt 0:00:16]} Rf6 {[%emt 0:00:32]} 70. Ra4 {[%emt 0:00:17]} Rf3+ {[%emt 0:00:14]} 71. Ke2 {[%emt 0:00:04]} Rf4 {[%emt 0:00:09] Weighted Error Value: White=0.53/Black=0.44} 0-1